bitfinex/quotes_ETHUSD_20240607
["timestamp","ask_amount","ask_price","bid_price","bid_amount"]
[1717766969012,0.1255309,3809.7,3809.6,6.117374]
[1717766969354,0.1255309,3809.7,3809.6,8.481274]
[1717766970915,0.1255309,3809.7,3809.6,11.481274]
[1717766991697,0.1255309,3809.7,3809.6,9.117374]
[1717766995181,0.1255309,3809.7,3809.6,5.942434]
[1717766995359,0.1255309,3809.7,3809.6,5.62494]
[1717766996664,0.1255309,3809.7,3809.6,6.17494]
[1717766997300,0.1255309,3809.7,3809.6,6.22494]
[1717766999673,0.1255309,3809.7,3809.6,3.22494]
[1717766999895,0.1255309,3809.7,3809.6,0.05]
[1717767000569,2.77651399,3809.7,3809.6,0.05]
[1717767000771,2.77651399,3809.7,3808.0,0.81345099]
[1717767000772,2.62539,3809.0,3808.0,0.81345099]
[1717767001002,2.62551,3808.8,3807.9,2.62611]
[1717767001217,2.254,3808.7,3807.9,2.62611]
[1717767001817,2.254,3808.7,3808.2,2.62588]
[1717767003831,2.427,3809.1,3808.4,2.62574]
[1717767004190,0.37451399,3809.7,3808.3,0.55]
[1717767004191,0.1255309,3809.7,3808.6,2.62558]
[1717767004524,0.1255309,3809.7,3808.9,2.6254]
[1717767005132,0.1255309,3809.7,3809.0,0.55]
[1717767006021,0.1255309,3809.7,3809.2,2.62521]
[1717767006197,0.1255309,3809.7,3809.3,0.55]
[1717767007521,0.1255309,3809.7,3809.4,2.62507]
[1717767007698,0.1255309,3809.7,3809.5,0.55]
[1717767008389,0.1255309,3809.7,3809.6,2.62494]
[1717767008590,0.1255309,3809.7,3809.6,3.17494]
[1717767012123,0.1255309,3809.7,3809.6,6.17494]
[1717767019599,0.1255309,3809.7,3809.6,5.62494]
[1717767019800,0.1255309,3809.7,3809.3,2.62513]
[1717767020243,0.1255309,3809.7,3809.0,2.62532]
[1717767020456,0.62886199,3809.7,3809.0,2.62532]
[1717767020605,2.2865,3809.6,3808.7,2.62555]
[1717767021541,2.62502,3809.5,3808.4,2.62575]
[1717767021750,2.2865,3809.6,3808.4,2.62575]
[1717767023111,2.62521,3809.3,3808.4,2.62575]
[1717767023417,2.423,3809.0,3808.1,2.62597]
[1717767023744,2.62545,3808.9,3808.1,2.62597]
[1717767024419,2.423,3809.0,3807.1,17.67231616]
[1717767024604,2.62517,3809.3,3807.1,17.67231616]
[1717767024605,2.62517,3809.3,3808.2,2.62587]
[1717767024801,2.62517,3809.3,3808.3,3.0]
[1717767025047,0.488337,3809.2,3808.3,3.0]
[1717767025386,2.6253,3809.1,3808.2,2.62587]
[1717767027554,2.4247,3809.0,3808.2,2.62587]
[1717767029234,2.62544,3808.9,3808.2,2.62587]
[1717767029438,2.62544,3808.9,3807.9,2.62611]
[1717767029603,0.505014,3808.8,3808.0,3.0]
[1717767030242,2.62556,3808.7,3808.0,3.0]
[1717767030452,2.4247,3809.0,3808.0,3.0]
[1717767030656,2.4904,3809.6,3807.9,2.3891]
[1717767030857,2.4904,3809.6,3809.0,2.62529]
[1717767032058,2.4904,3809.6,3808.6,2.62556]
[1717767032255,5.11541,3809.6,3808.7,3.0]
[1717767033430,2.62515,3809.3,3808.7,3.0]
[1717767033625,2.62515,3809.3,3808.4,3.0]
[1717767034129,2.62536,3809.0,3807.9,2.62605]
[1717767034331,2.4238,3808.8,3807.9,2.62605]
[1717767034540,2.4238,3808.8,3808.1,2.62591]
[1717767036341,2.62558,3808.7,3807.8,3.0]
[1717767037159,2.62558,3808.7,3807.9,2.62607]
[1717767037359,2.62558,3808.7,3808.0,3.0]
[1717767037564,0.504938,3808.6,3808.0,3.0]
[1717767038275,2.62571,3808.5,3807.5,2.62632]
[1717767038480,2.62589,3808.3,3807.5,2.62632]
[1717767038633,2.2825,3808.2,3807.5,2.62632]
[1717767039038,2.62589,3808.3,3807.5,2.62632]
[1717767039265,4.98029,3808.3,3807.5,2.62632]
[1717767041852,4.98029,3808.3,3807.2,2.62658]
[1717767041853,2.62603,3808.1,3807.2,2.62658]
[1717767042778,2.62617,3807.9,3807.0,3.0]
[1717767043374,5.08516,3807.6,3807.0,3.0]
[1717767044585,2.6265,3807.4,3806.6,2.62699]
[1717767044993,2.62663,3807.2,3806.3,2.62719]
[1717767045150,0.262663,3807.1,3806.3,2.62719]
[1717767045478,2.62663,3807.2,3806.3,2.62719]
[1717767046470,2.62663,3807.2,3806.4,3.0]
[1717767047053,2.62679,3807.0,3806.3,2.62719]
[1717767047257,2.4362,3806.9,3806.0,2.62741]
[1717767047510,2.4362,3806.9,3806.2,2.62728]
[1717767048615,2.62651,3807.4,3806.5,2.62706]
[1717767050712,2.6267,3807.1,3806.2,2.62726]
[1717767050914,2.6267,3807.1,3806.3,3.0]
[1717767051093,2.6267,3807.1,3806.4,2.62709]
[1717767051514,3.11809,3807.1,3806.4,2.62709]
[1717767052421,2.6267,3807.1,3806.4,2.62709]
[1717767053426,2.62586,3808.3,3806.6,2.62698]
[1717767053427,2.62647,3807.4,3806.6,2.62698]
[1717767057245,2.62586,3808.3,3806.3,3.0]
[1717767057246,2.336,3808.3,3806.9,2.3818]
[1717767057450,2.336,3808.3,3807.0,0.53818]
[1717767057753,2.336,3808.3,3806.9,2.3818]
[1717767058047,2.62609,3808.0,3807.3,2.62647]
[1717767058256,2.62622,3807.8,3807.0,2.6267]
[1717767058561,0.262622,3807.7,3807.0,2.6267]
[1717767058733,2.62622,3807.8,3807.0,2.6267]
[1717767059658,2.3283,3807.5,3806.7,2.6269]
[1717767060125,2.3283,3807.5,3806.9,2.62678]
[1717767061050,2.62646,3807.4,3806.6,5.62697]
[1717767061213,0.495476,3807.4,3806.3,2.62718]
[1717767061417,3.0,3808.5,3805.9,0.008]
[1717767061418,2.4982,3806.9,3805.9,0.008]
[1717767061614,2.4982,3806.9,3805.5,2.62774]
[1717767062243,2.62687,3806.8,3806.0,2.62738]
[1717767062571,3.139377,3806.8,3806.0,2.62738]
[1717767063082,3.139377,3806.8,3805.6,0.008]
[1717767063083,2.62706,3806.6,3805.7,2.62762]
[1717767064476,2.62706,3806.6,3805.9,2.62744]
[1717767066473,2.62717,3806.4,3805.6,2.62768]
[1717767066684,2.62717,3806.4,3805.7,3.0]
[1717767066836,3.125257,3806.4,3805.7,3.0]
[1717767067036,2.62717,3806.4,3805.8,2.62756]
[1717767067331,2.3537,3806.5,3805.8,2.62756]
[1717767067538,2.62671,3807.1,3806.2,2.62728]
[1717767067761,2.2595,3806.7,3805.8,2.62751]
[1717767067961,0.22595,3806.6,3805.8,2.62751]
[1717767068137,2.2595,3806.7,3805.8,2.62751]
[1717767069274,2.62703,3806.6,3805.8,2.62751]
[1717767069785,2.6272,3806.4,3805.7,3.0]
[1717767069942,2.6272,3806.4,3805.6,3.0]
[1717767070301,2.62735,3806.2,3805.5,2.62776]
[1717767070676,2.441,3806.1,3805.5,2.62776]
[1717767070910,2.441,3806.1,3805.2,5.63596]
[1717767071075,2.441,3806.1,3805.2,5.62796]
[1717767071076,2.62743,3806.0,3805.2,5.62796]
[1717767071275,2.62764,3805.7,3805.2,3.0]
[1717767071623,2.441,3805.6,3804.9,0.008]
[1717767071914,2.62778,3805.5,3804.8,2.63621]
[1717767072130,2.62778,3805.5,3804.8,2.62821]
[1717767072675,2.62778,3805.5,3804.7,0.008]
[1717767072676,2.62805,3805.1,3804.7,0.008]
[1717767072877,2.62805,3805.1,3804.3,0.008]
[1717767073271,2.62805,3805.1,3804.2,0.008]
[1717767073888,2.2596,3805.0,3804.2,0.008]
[1717767074089,2.2596,3805.0,3804.1,0.008]
[1717767074090,2.748365,3805.0,3804.1,0.008]
[1717767074346,2.62837,3804.7,3804.1,0.008]
[1717767074834,2.62837,3804.7,3804.2,0.008]
[1717767074983,4.88773,3805.0,3804.2,0.008]
[1717767075184,4.88773,3805.0,3804.3,0.008]
[1717767075920,4.88773,3805.0,3804.4,0.008]
[1717767076138,2.62829,3804.8,3804.4,0.008]
[1717767076280,2.62829,3804.8,3804.2,0.008]
[1717767077083,2.62845,3804.6,3804.2,0.008]
[1717767077281,2.62845,3804.6,3804.1,0.008]
[1717767078117,2.62861,3804.3,3804.1,0.008]
[1717767078436,2.62861,3804.3,3803.9,0.008]
[1717767079383,0.262861,3804.2,3803.9,0.008]
[1717767080482,2.62841,3804.6,3803.9,0.008]
[1717767080685,2.62841,3804.6,3804.0,0.008]
[1717767080913,2.62841,3804.6,3804.1,0.008]
[1717767081486,2.6282,3804.9,3804.1,0.008]
[1717767081715,2.62839,3804.6,3804.2,0.008]
[1717767081951,0.262839,3804.5,3804.0,0.008]
[1717767082682,2.4024,3804.3,3804.0,0.008]
[1717767082885,2.4024,3804.3,3803.9,0.008]
[1717767083539,0.262839,3804.5,3803.9,2.63687]
[1717767083708,2.62844,3804.6,3804.1,0.008]
[1717767086610,2.4394,3804.5,3804.1,0.008]
[1717767087703,2.62844,3804.6,3804.1,0.008]
[1717767087902,2.62844,3804.6,3804.0,0.55]
[1717767087903,2.62844,3804.6,3804.2,0.008]
[1717767090330,4.98252,3804.9,3804.2,0.008]
[1717767090531,2.3182,3805.3,3804.3,0.008]
[1717767090656,2.3182,3805.3,3804.5,2.6284]
[1717767090657,2.62801,3805.2,3804.5,2.6284]
[1717767090860,2.62781,3805.5,3804.7,2.62831]
[1717767091178,0.262781,3805.4,3804.7,0.008]
[1717767091383,2.32,3806.3,3804.6,0.558]
[1717767091597,2.62751,3805.9,3804.9,2.63618]
[1717767091779,2.62751,3805.9,3805.0,0.55]
[1717767092322,2.32,3806.3,3805.0,0.55]
[1717767092323,2.62766,3805.7,3805.0,0.55]
[1717767092467,2.32,3805.4,3804.9,0.008]
[1717767092665,0.494782,3805.3,3804.7,0.55]
[1717767093577,0.494782,3805.3,3804.8,2.62824]
[1717767093823,0.494782,3805.3,3804.7,0.55]
[1717767093824,5.0366,3805.8,3805.0,2.62812]
[1717767094113,5.0366,3805.8,3805.1,0.55]
[1717767094906,2.62732,3806.2,3805.5,2.62776]
[1717767095082,2.62732,3806.2,3805.6,0.55]
[1717767095483,2.62705,3806.6,3805.6,0.55]
[1717767095824,3.130655,3806.6,3805.7,2.62759]
[1717767095967,3.130655,3806.6,3805.8,0.55]
[1717767096167,3.130655,3806.6,3805.4,0.008]
[1717767096168,2.62741,3806.1,3805.4,0.008]
[1717767096395,2.62741,3806.1,3805.1,2.62802]
[1717767096591,0.262741,3806.0,3805.1,2.62802]
[1717767097077,0.262741,3806.0,3805.0,3.008]
[1717767097078,2.3299,3805.8,3805.0,3.008]
[1717767097407,2.62751,3805.9,3805.1,0.55]
[1717767097768,2.62751,3805.9,3805.2,2.62795]
[1717767097968,2.62751,3805.9,3805.3,0.55]
[1717767098271,2.3299,3806.2,3805.3,0.55]
[1717767098978,2.62727,3806.3,3805.3,0.55]
[1717767099185,2.889997,3806.3,3805.3,0.55]
[1717767100213,2.62765,3805.7,3805.2,0.008]
[1717767100516,2.62741,3806.1,3805.1,2.62803]
[1717767100674,2.9164237,3806.1,3805.1,2.62803]
[1717767101069,0.2890137,3806.1,3805.4,2.62784]
[1717767101412,0.262727,3806.3,3805.5,0.55]
[1717767101567,2.890007,3806.3,3805.5,0.55]
[1717767101774,2.62742,3806.1,3805.5,0.55]
[1717767101999,2.62742,3806.1,3805.2,0.008]
[1717767102311,0.262727,3806.3,3805.0,0.008]
[1717767102808,0.262727,3806.3,3804.8,2.63619]
[1717767102809,2.62767,3805.7,3804.8,2.63619]
[1717767103577,2.62782,3805.5,3804.8,0.008]
[1717767103805,2.62782,3805.5,3804.6,0.558]
[1717767104004,2.62782,3805.5,3804.7,0.008]
[1717767104187,2.3076,3805.6,3804.7,0.008]
[1717767104188,2.62796,3805.3,3804.7,0.008]
[1717767104402,0.493542,3805.4,3804.6,0.008]
[1717767104717,2.3076,3805.6,3804.5,0.008]
[1717767104885,2.3076,3805.6,3804.6,0.008]
[1717767106178,2.62823,3804.9,3804.6,0.008]
[1717767106517,2.6284,3804.6,3804.2,0.008]
[1717767106813,2.6284,3804.6,3804.1,0.008]
[1717767107193,2.6282,3804.9,3804.1,0.008]
[1717767107393,2.6282,3804.9,3804.3,0.008]
[1717767109217,2.62853,3804.4,3804.3,0.008]
[1717767109383,2.62853,3804.4,3804.0,0.008]
[1717767112185,2.62793,3805.3,3804.0,0.008]
[1717767112530,2.3104,3805.5,3804.3,0.008]
[1717767112741,2.62789,3805.4,3804.5,2.63641]
[1717767112906,2.62789,3805.4,3804.6,0.558]
[1717767113309,2.62789,3805.4,3804.7,2.62832]
[1717767113518,2.62789,3805.4,3804.8,0.55]
[1717767116429,2.3672,3806.0,3804.9,2.62818]
[1717767116430,2.62764,3805.7,3804.9,2.62818]
[1717767116652,2.62764,3805.7,3805.0,0.55]
[1717767119409,0.262727,3806.3,3805.0,0.868618]
[1717767119607,2.62725,3806.3,3805.1,2.3122]
[1717767119804,2.62725,3806.3,3805.5,2.62774]
[1717767120248,2.6274,3806.1,3805.5,2.62774]
[1717767120516,2.3941,3805.8,3805.2,0.008]
[1717767120826,2.62796,3805.3,3804.7,0.008]
[1717767121043,2.62796,3805.3,3804.6,3.008]
[1717767121386,2.62796,3805.3,3804.6,0.008]
[1717767121828,2.62787,3805.4,3804.7,2.62832]
[1717767122029,2.62787,3805.4,3804.8,0.55]
[1717767123431,2.62802,3805.2,3804.8,0.55]
[1717767123659,2.62802,3805.2,3804.6,0.008]
[1717767123858,2.62802,3805.2,3804.6,0.55]
[1717767124091,2.62802,3805.2,3804.6,0.558]
[1717767124264,2.62781,3805.5,3804.7,2.6283]
[1717767124476,2.763,3807.2,3804.7,2.6283]
[1717767124477,0.56819953,3806.2,3804.8,0.55]
[1717767124675,2.6276,3805.8,3805.1,2.62802]
[1717767124997,2.6274,3806.1,3805.5,2.62775]
[1717767125499,2.6274,3806.1,3805.2,2.8236]
[1717767125500,2.62753,3805.9,3805.2,2.63595]
[1717767125677,2.890283,3805.9,3805.3,0.55]
[1717767126170,2.62753,3805.9,3805.3,0.55]
[1717767127401,2.62765,3805.7,3805.0,0.008]
[1717767127575,2.62784,3805.5,3804.8,0.008]
[1717767127776,2.4916,3805.9,3804.6,2.62835]
[1717767127777,2.62793,3805.3,3804.7,0.008]
[1717767127998,2.62793,3805.3,3804.6,2.63635]
[1717767128509,2.62793,3805.3,3804.8,2.62823]
[1717767128708,2.62793,3805.3,3804.9,0.55]
[1717767129269,2.62793,3805.3,3804.7,0.008]
[1717767129470,2.62793,3805.3,3804.7,2.62831]
[1717767129684,2.62793,3805.3,3804.8,0.55]
[1717767130388,2.62774,3805.6,3804.8,0.55]
[1717767130709,2.62786,3805.4,3804.8,0.558]
[1717767130902,2.62814,3805.0,3804.7,0.008]
[1717767131206,2.62814,3805.0,3804.4,0.008]
[1717767134623,2.6283,3804.8,3804.4,0.008]
[1717767134821,2.6283,3804.8,3804.3,0.008]
[1717767135024,2.89113,3804.8,3804.3,0.008]
[1717767136554,2.62845,3804.6,3804.3,0.008]
[1717767136821,2.62845,3804.6,3804.2,0.008]
[1717767138487,2.62818,3805.0,3804.2,0.008]
[1717767138827,2.62818,3805.0,3804.3,0.008]
[1717767138999,2.62818,3805.0,3804.3,0.32668]
[1717767139200,2.62793,3805.3,3804.4,2.9681]
[1717767139405,2.62793,3805.3,3804.5,0.558]
[1717767139607,2.62793,3805.3,3804.6,0.008]
[1717767140327,2.62764,3805.7,3804.6,0.008]
[1717767140500,3.05737481,3805.9,3804.7,0.008]
[1717767140501,2.62784,3805.4,3804.7,0.008]
[1717767140709,2.62784,3805.4,3804.6,2.63637]
[1717767140891,2.62784,3805.4,3804.7,0.55]
[1717767141086,2.890624,3805.4,3804.7,0.558]
[1717767141733,2.62808,3805.1,3804.7,0.558]
[1717767141891,2.62808,3805.1,3804.6,0.008]
[1717767142086,2.62808,3805.1,3804.4,0.558]
[1717767142343,2.62808,3805.1,3804.5,0.008]
[1717767142555,0.262808,3805.0,3804.5,0.008]
[1717767142710,0.262808,3805.0,3804.4,0.55]
[1717767142711,2.6282,3804.9,3804.4,0.558]
[1717767144436,2.62837,3804.7,3804.4,0.008]
[1717767144653,2.62837,3804.7,3804.2,0.008]
[1717767147325,2.4301,3805.2,3804.2,0.008]
[1717767147326,2.62851,3804.5,3804.2,0.008]
[1717767147621,2.6286,3804.3,3804.0,0.008]
[1717767147827,2.6286,3804.3,3803.9,0.008]
[1717767148917,2.6286,3804.3,3804.0,0.008]
[1717767149452,2.62841,3804.6,3804.0,0.008]
[1717767149629,0.262841,3804.5,3804.1,0.008]
[1717767149829,2.62841,3804.6,3804.0,0.008]
[1717767150149,2.62841,3804.6,3804.1,0.008]
[1717767154754,2.62841,3804.6,3804.2,0.008]
[1717767155132,2.62841,3804.6,3804.2,0.558]
[1717767155334,2.62823,3804.9,3804.2,0.558]
[1717767155555,2.62823,3804.9,3804.3,0.008]
[1717767155859,3.134063,3804.9,3804.3,0.008]
[1717767156556,2.62834,3804.7,3804.3,0.008]
[1717767157645,2.62816,3805.0,3804.4,2.3607]
[1717767157858,2.62816,3805.0,3804.5,0.55]
[1717767158059,2.62796,3805.3,3804.5,3.18642]
[1717767158235,2.62796,3805.3,3804.7,2.62831]
[1717767158431,2.62796,3805.3,3804.8,0.55]
[1717767159322,2.62774,3805.6,3804.8,0.55]
[1717767159559,2.62774,3805.6,3804.8,0.558]
[1717767159927,2.62752,3805.9,3804.8,0.61056311]
[1717767160136,2.62729,3806.2,3805.3,2.62786]
[1717767160446,2.2847,3806.5,3804.9,2.2708]
[1717767160447,2.62749,3806.0,3805.4,0.55]
[1717767163693,2.62749,3806.0,3805.2,0.55]
[1717767168265,2.6276,3805.8,3805.2,0.55]
[1717767170309,2.62773,3805.6,3805.2,0.55]
[1717767170609,0.262773,3805.5,3805.0,0.55]
[1717767170770,2.62788,3805.4,3804.8,0.008]
[1717767170970,2.3705,3806.2,3804.6,0.008]
[1717767170971,2.62801,3805.2,3804.6,0.008]
[1717767171206,2.62801,3805.2,3804.5,0.008]
[1717767171410,2.62772,3805.6,3804.5,0.008]
[1717767171618,2.62828,3804.8,3804.5,0.008]
[1717767171818,2.62828,3804.8,3804.3,0.008]
[1717767173992,2.62828,3804.8,3804.3,2.63658]
[1717767174200,2.62828,3804.8,3804.4,0.55]
[1717767174400,2.62828,3804.8,3804.4,0.558]
[1717767177508,2.6281,3805.1,3804.4,0.558]
[1717767177709,2.6281,3805.1,3804.5,0.008]
[1717767178412,2.62821,3804.9,3804.5,0.008]
[1717767178593,2.62821,3804.9,3804.4,0.558]
[1717767178787,2.62821,3804.9,3804.4,0.008]
[1717767178988,2.62821,3804.9,3804.5,0.55]
[1717767179183,2.62821,3804.9,3804.1,0.55]
[1717767179184,2.62821,3804.9,3804.4,0.008]
[1717767179507,2.62821,3804.9,3804.3,0.008]
[1717767179508,2.62836,3804.7,3804.3,0.008]
[1717767179705,2.62836,3804.7,3804.2,0.008]
[1717767182541,2.59661,3805.1,3804.2,0.008]
[1717767182542,2.62815,3805.0,3804.2,0.008]
[1717767182707,2.62815,3805.0,3804.3,0.008]
[1717767184353,2.62815,3805.0,3804.4,0.008]
[1717767184497,2.62722,3806.3,3804.4,0.008]
[1717767184498,2.62794,3805.3,3804.5,2.677264]
[1717767184704,2.62794,3805.3,3804.6,0.558]
[1717767185322,2.62794,3805.3,3804.6,3.18635]
[1717767186110,2.62771,3805.6,3804.8,2.62821]
[1717767186437,2.62771,3805.6,3804.9,0.55]
[1717767186655,2.62771,3805.6,3804.9,0.868621]
[1717767186799,2.62771,3805.6,3804.9,0.55]
[1717767187196,2.62788,3805.4,3804.9,0.55]
[1717767187449,2.62788,3805.4,3804.7,0.008]
[1717767187646,2.62788,3805.4,3804.7,2.62828]
[1717767187847,2.62788,3805.4,3804.8,0.55]
[1717767188140,2.62765,3805.7,3804.9,2.62814]
[1717767188313,2.62765,3805.7,3805.0,0.55]
[1717767188901,2.62765,3805.7,3805.1,2.4785]
[1717767189130,2.62765,3805.7,3805.2,0.55]
[1717767191114,2.62746,3806.0,3805.2,0.55]
[1717767191729,2.62761,3805.8,3805.2,0.55]
[1717767193841,2.62737,3806.1,3805.3,2.62787]
[1717767194055,2.62737,3806.1,3805.4,0.55]
[1717767194938,2.62753,3805.9,3805.4,0.55]
[1717767195138,2.62753,3805.9,3805.2,3.17794]
[1717767196280,2.62753,3805.9,3805.2,3.64409448]
[1717767197285,2.62734,3806.2,3805.4,2.62782]
[1717767197485,2.62734,3806.2,3805.5,0.55]
[1717767197846,2.62745,3806.0,3805.5,0.55]
[1717767198247,2.62758,3805.8,3805.2,0.55]
[1717767200029,2.62719,3806.4,3805.5,2.62775]
[1717767200185,2.62719,3806.4,3805.6,0.55]
[1717767200521,2.62719,3806.4,3805.3,0.008]
[1717767200725,2.62719,3806.4,3805.4,1.34665]
[1717767201032,2.62696,3806.7,3805.9,2.62744]
[1717767201209,2.62696,3806.7,3806.0,0.55]
[1717767201622,2.62713,3806.5,3806.0,0.55]
[1717767202025,2.62713,3806.5,3805.7,0.55]
[1717767202613,2.62713,3806.5,3805.7,3.17758]
[1717767204841,2.6269,3806.8,3805.9,2.62744]
[1717767205051,2.6269,3806.8,3806.0,0.55]
[1717767205433,2.6269,3806.8,3806.1,2.62735]
[1717767205606,3.12397,3806.8,3806.2,0.55]
[1717767206039,3.12397,3806.8,3805.9,0.55]
[1717767206248,2.3176,3806.7,3805.8,7.43]
[1717767206491,2.6274,3806.1,3805.8,7.43]
[1717767206777,2.89014,3806.1,3805.8,7.43]
[1717767208352,2.6274,3806.1,3805.8,7.43]
[1717767208875,2.62773,3805.6,3805.3,0.008]
[1717767209033,2.62773,3805.6,3804.9,2.62817]
[1717767209234,2.62753,3805.9,3805.1,2.62802]
[1717767209470,2.62753,3805.9,3805.1,3.191622]
[1717767209970,2.62771,3805.6,3805.1,3.191622]
[1717767210172,2.62771,3805.6,3805.1,2.62802]
[1717767210380,2.62771,3805.6,3805.2,0.55]
[1717767211191,2.62788,3805.4,3805.2,0.55]
[1717767211338,2.62788,3805.4,3804.9,0.55]
[1717767213482,2.62788,3805.4,3804.7,0.008]
[1717767213483,2.62803,3805.2,3804.7,0.008]
[1717767213687,2.62803,3805.2,3804.5,10.06644]
[1717767213883,2.62803,3805.2,3804.5,2.63644]
[1717767214741,2.62803,3805.2,3804.6,0.55]
[1717767214977,2.62803,3805.2,3804.6,0.93528261]
[1717767215356,2.62779,3805.5,3804.7,2.62831]
[1717767215555,2.62779,3805.5,3804.8,0.55]
[1717767219556,2.62794,3805.3,3804.8,0.55]
[1717767224082,2.62808,3805.1,3804.8,0.55]
[1717767224305,2.62808,3805.1,3804.5,0.55]
[1717767224462,2.62808,3805.1,3804.5,0.558]
[1717767226477,2.62808,3805.1,3804.5,0.558]
[1717767228713,3.115834,3805.7,3804.5,0.558]
[1717767228714,2.62822,3804.9,3804.5,0.558]
[1717767228895,2.62822,3804.9,3804.6,0.55]
[1717767229211,2.62822,3804.9,3804.5,0.008]
[1717767229398,2.62822,3804.9,3804.4,1.848768]
[1717767231603,2.62803,3805.2,3804.5,2.62846]
[1717767231808,2.62803,3805.2,3804.6,0.55]
[1717767232008,2.62803,3805.2,3804.6,0.558]
[1717767235845,2.62803,3805.2,3804.6,1.2348228]
[1717767237142,2.62803,3805.2,3804.6,0.558]
[1717767242073,2.62812,3805.0,3804.6,0.558]
[1717767242363,2.62812,3805.0,3804.6,0.55]
[1717767244235,0.56822695,3805.7,3804.6,0.55]
[1717767244236,2.62797,3805.3,3804.6,0.55]
[1717767244470,2.62797,3805.3,3804.6,0.558]
[1717767245173,2.62797,3805.3,3804.6,1.2348228]
[1717767245383,2.62797,3805.3,3804.7,2.62832]
[1717767245550,2.62797,3805.3,3804.8,0.55]
[1717767245739,2.62769,3805.7,3804.9,5.06396]
[1717767245935,2.62769,3805.7,3805.0,0.55]
[1717767246378,2.62744,3806.0,3805.0,1.16475644]
[1717767246607,2.62724,3806.3,3805.6,2.2521]
[1717767246746,2.62703,3806.6,3805.7,3.665603]
[1717767247078,2.62703,3806.6,3805.7,3.17762]
[1717767248141,2.6268,3807.0,3806.0,2.62741]
[1717767248480,2.6268,3807.0,3806.1,0.55]
[1717767248680,2.6268,3807.0,3806.2,4.95476]
[1717767248887,2.6268,3807.0,3806.3,0.55]
[1717767249659,2.62696,3806.7,3805.8,10.05751]
[1717767249869,2.62696,3806.7,3805.9,0.55]
[1717767254288,2.62696,3806.7,3806.0,2.62742]
[1717767254489,2.62696,3806.7,3806.1,0.55]
[1717767259692,2.62711,3806.5,3805.8,7.43]
[1717767259895,2.62711,3806.5,3805.9,0.55]
[1717767260189,2.62727,3806.3,3805.8,7.43]
[1717767261192,2.3329,3806.5,3805.3,2.4976]
[1717767261489,0.5222626,3806.4,3805.2,7.438]
[1717767261795,2.62767,3805.7,3805.2,7.438]
[1717767262094,2.62767,3805.7,3805.2,7.43]
[1717767264675,2.62783,3805.5,3805.2,7.43]
[1717767264875,2.62783,3805.5,3804.9,0.008]
[1717767265102,2.62783,3805.5,3804.8,0.55]
[1717767265321,2.62796,3805.3,3804.8,0.55]
[1717767266035,2.62796,3805.3,3804.7,0.008]
[1717767266296,2.62796,3805.3,3804.7,0.55]
[1717767267590,2.62812,3805.0,3804.6,7.438]
[1717767267910,2.62812,3805.0,3804.6,7.43]
[1717767269782,2.62832,3804.8,3804.6,7.43]
[1717767270024,2.62806,3805.1,3804.7,2.3669]
[1717767270321,2.62806,3805.1,3804.6,7.438]
[1717767270638,2.62806,3805.1,3804.6,7.43]
[1717767271335,2.62806,3805.1,3804.5,0.008]
[1717767271495,2.62806,3805.1,3804.4,0.008]
[1717767272015,2.62824,3804.9,3804.4,0.008]
[1717767274629,2.62836,3804.7,3804.4,0.008]
[1717767274829,2.62836,3804.7,3804.2,0.008]
[1717767274984,2.62836,3804.7,3804.2,0.558]
[1717767275187,2.62852,3804.5,3804.3,0.008]
[1717767275410,2.62852,3804.5,3804.2,0.008]
[1717767275933,5.04082,3804.5,3804.2,0.008]
[1717767276083,5.04082,3804.5,3803.5,2.62912]
[1717767276084,2.62916,3803.5,3802.8,9.716]
[1717767276286,2.62116,3803.5,3802.8,9.716]
[1717767276512,2.62116,3803.5,3802.8,7.43]
[1717767277180,2.62933,3803.3,3802.9,0.02586034]
[1717767279729,2.3415,3803.7,3802.9,0.02586034]
[1717767280229,2.3415,3803.7,3802.0,3.0]
[1717767280388,2.3415,3803.7,3802.1,2.67486304]
[1717767280595,2.3415,3803.7,3802.2,3.0]
[1717767280801,2.3415,3803.7,3802.2,2.63003]
[1717767280802,2.62956,3803.0,3802.2,2.63003]
[1717767281133,2.62956,3803.0,3802.3,0.02451326]
[1717767281328,2.62956,3803.0,3802.3,0.28996759]
[1717767281503,2.62956,3803.0,3802.3,0.02451326]
[1717767281686,2.62956,3803.0,3801.9,12.34626]
[1717767281883,2.62956,3803.0,3802.0,0.02461767]
[1717767282636,2.62956,3803.0,3802.0,0.57461767]
[1717767282803,2.62956,3803.0,3802.1,1.29208777]
[1717767283317,2.62956,3803.0,3802.2,0.02493104]
[1717767285439,2.62956,3803.0,3802.2,0.57493104]
[1717767286740,2.62956,3803.0,3802.3,2.62997]
[1717767286946,2.62956,3803.0,3802.4,0.55]
[1717767287238,2.62956,3803.0,3802.5,0.3204901]
[1717767287433,2.62956,3803.0,3802.6,0.0248424]